Cogmind - Beta 15 @@@ ROGUE MODE // 2025.08.29 @ 11:46:22 Player: beans Result: Destroyed by S-10 Pest with Light Assault Rifle Performance ------------- Evolutions (2) 1000 Regions Visited (4) 800 Robots Destroyed (36) 180 Value Destroyed (835) 835 Prototype IDs (0) 0 Alien Tech Used (0) 0 Bonus (454) 454 TOTAL SCORE: 3269 Bonus ------- Pacifist 200 High Alert Combat Kills 54 Entered Garrisons 200 Cogmind --------- Core Integrity 0/550 Matter 1/300 Energy 100/100 System Corruption 0% Temperature Cool (0) Movement Core (50) Location -8/Garrison Parts ------- > --- POWER (1) -------- (None) > --- PROPULSION (2) --- (None) > --- UTILITY (6) ------ (None) > --- WEAPON (2) ------- (None) > --- INVENTORY (5) ---- High-capacity Matter Pod (0) Shotgun Rocket Launcher Peak State ------------ > --- POWER ------------ (None) > --- PROPULSION ------- (None) > --- UTILITY ---------- High-capacity Matter Pod > --- WEAPON ----------- Heavy Laser Heavy Laser > --- INVENTORY -------- Rocket Launcher [Rating: 9] Favorites ----------- Power Ion Engine Engine Ion Engine Propulsion Light Treads Treads Light Treads Utility High-capacity Matter Pod Storage High-capacity Matter Pod Weapon Beam Cannon Energy Gun Heavy Laser Energy Cannon Beam Cannon Ballistic Gun Assault Rifle Launcher Mini Grenade Launcher Build | -11 -10 -9 -8 -8 ------- Run | Yrd Mat Mat Mat Gar Slots Evolved 4 | . . 2 2 . Power . | . . . . . Propulsion . | . . . . . Utility 4 | . . 2 2 . Weapon . | . . . . . Parts Attached 14 | 5 2 3 4 . Power 1 | 1 . . . . Engine 1 | 1 . . . . Core . | . . . . . Reactor . | . . . . . Propulsion 2 | 2 . . . . Treads 2 | 2 . . . . Leg . | . . . . . Wheel . | . . . . . Hover . | . . . . . Flight . | . . . . . Utility 1 | . . . 1 . Device . | . . . . . Storage 1 | . . . 1 . Processor . | . . . . . Hackware . | . . . . . Protection . | . . . . . Artifact . | . . . . . Weapon 10 | 2 2 3 3 . Energy Gun 2 | . . . 2 . Energy Cannon 2 | . 2 . . . Ballistic Gun 3 | 2 . . 1 . Ballistic Cannon . | . . . . . Launcher 3 | . . 3 . . Special Weapon . | . . . . . Impact Weapon . | . . . . . Slashing Weapon . | . . . . . Piercing Weapon . | . . . . . Special Melee Weapon . | . . . . . Unidentified Prototypes . | . . . . . Parts Lost 9 | . . 5 4 . Power 1 | . . 1 . . Propulsion 2 | . . 2 . . Utility . | . . . . . Weapon 6 | . . 2 4 . Highest Loss Streak 3 | . . 3 2 . To Critical Strikes . | . . . . . Average Backups 2 | . 1 4 1 3 Power . | . . . . . Propulsion . | . . . . . Utility . | . . 1 . 1 Weapon 2 | . . 3 1 2 Tool/Special . | . . . . . Unused Backups 1 | . . . . 1 Power . | . . . . . Propulsion . | . . . . . Utility . | . . . . . Weapon 1 | . . . . 1 Tool/Special . | . . . . . Average Slot Usage (%) 38 | . 71 40 12 . Engine 7 | . 14 8 . . Treads 13 | . 28 13 . . Storage 1 | . . . 8 . Energy Cannon 8 | . 2 13 . . Ballistic Gun 5 | . 25 . 2 . Launcher 3 | . . 5 . . Peak Build Rating 9 | 5 5 6 9 . Average Rating 3 | 3 5 4 2 . On Entrance 2 | . 5 5 1 . Naked Turns 73 | . . 2 14 57 Heaviest Build 12 | 8 11 11 12 . Greatest Support 40 | 40 40 40 3 3 Greatest Overweight (x) 3 | . . 2 3 . Average Overweight (x) . | . . . . . Largest Inventory Capacity 5 | 5 5 5 5 5 Average Capacity 5 | 5 5 5 5 5 Most Carried 5 | 3 4 5 3 3 Average Carried 2 | . 1 4 1 3 Final Capacity 5 | 5 5 5 5 5 Final Carried 4 | . 4 3 3 3 Class Distribution -------------------- 100% | Mutant Dominant Class ---------------- Mutant | -10/Materials Mutant | -9/Materials Mutant | -8/Materials Mutant | -8/Garrison Resources | -11 -10 -9 -8 -8 ----------- Run | Yrd Mat Mat Mat Gar Matter Collected 464 | 200 . 264 . . Remotely . | . . . . . Salvage Created 943 | . . 848 95 . Parts 64 | . . 61 3 . Haulers Intercepted 2 | . . 2 . . Recyclers Shooed 1 | . . 1 . . Parts Field Recycled . | . . . . . Retrieved Matter . | . . . . . Parts Self-Destructed . | . . . . . Prevented . | . . . . . Kills | -11 -10 -9 -8 -8 ------- Run | Yrd Mat Mat Mat Gar Combat Hostiles Destroyed 19 | . . 18 1 . Cannons 5 | . . 5 . . AOE 13 | . . 12 1 . Classes Destroyed 9 | . . 9 . . Worker 2 | . . 2 . . Builder 5 | . . 5 . . Tunneler 1 | . . 1 . . Hauler 2 | . . 2 . . Recycler 4 | . . 3 1 . Watcher 3 | . . 3 . . Swarmer 3 | . . 3 . . Grunt 14 | . . 13 1 . Sentry 2 | . . 2 . . Best Kill Streak 14 | . . 14 1 . Combat Bots Only 3 | . . 3 1 . Max Kills in Single Turn 3 | . . 3 1 . Gunslinging . | . . . . . Exploded 2 | . . 2 1 . Melee . | . . . . . Uniques/NPCs Destroyed . | . . . . . Combat | -11 -10 -9 -8 -8 -------- Run | Yrd Mat Mat Mat Gar Hostile Shots Fired 173 | . . 89 55 29 Missed 49 | . . 21 15 13 Hits 124 | . . 68 40 16 Projectile 124 | . . 68 40 16 Critical Strikes 6 | . . 4 2 . Part Disruptions 3 | . . 3 . . Damage Taken 1846 | . . 1061 693 92 Core 941 | . . 389 460 92 Absorbed by Shields 34 | . . . . 34 Core Remaining (%) 67 | 100 100 2 . . Volleys Fired 82 | . 4 69 9 . Largest 2 | . 2 2 2 . Hottest 138 | . 120 120 138 . Shots Fired 106 | . 8 86 12 . Gun 15 | . 6 . 9 . Cannon 50 | . 2 48 . . Launcher 41 | . . 38 3 . Special . | . . . . . Kinetic 9 | . 6 . 3 . Thermal 56 | . 2 48 6 . Explosive 41 | . . 38 3 . Electromagnetic . | . . . . . Robot Hit Streak 10 | . 1 10 6 . Robot Miss Streak 3 | . 3 3 2 . Penetration Max . | . . . . . Secondary Targets . | . . . . . Shots Hit Robots 50 | . 3 39 8 . Core Hits 59 | . 1 50 8 . Critical Kills . | . . . . . Critical Parts Destroyed . | . . . . . Critical Strikes . | . . . . . Melee Attacks . | . . . . . Impact . | . . . . . Slashing . | . . . . . Piercing . | . . . . . Sneak Attacks . | . . . . . Combat Hostiles . | . . . . . Follow-up Attacks . | . . . . . Damage Inflicted 3040 | . 36 2649 355 . Guns 177 | . 19 . 158 . Cannons 535 | . 17 518 . . Explosions 2328 | . . 2131 197 . Melee . | . . . . . Ramming . | . . . . . Kinetic 64 | . 19 . 45 . Thermal 1106 | . 17 976 113 . Explosive 1683 | . . 1486 197 . Electromagnetic 187 | . . 187 . . Impact . | . . . . . Slashing . | . . . . . Piercing . | . . . . . Highest Corruption . | . . . . . Average Corruption . | . . . . . Corruption Purged . | . . . . . Corruption Blocked . | . . . . . Overload Shots . | . . . . . Overflow Damage 116 | . . 115 1 . Projectiles . | . . . . . Explosions 116 | . . 115 1 . Melee . | . . . . . Knockbacks . | . . . . . Impact . | . . . . . Kinetic . | . . . . . Secondary . | . . . . . Self-Inflicted Damage 318 | . . 289 29 . Shots 13 | . . 12 1 . Rammed . | . . . . . Targets Rammed . | . . . . . Kicked . | . . . . . Crushed . | . . . . . Highest Temperature 343 | . 60 343 225 . Average Temperature 111 | . 31 114 119 . Received Heat Transfer 726 | . . 330 396 . Siege Activations . | . . . . . Martial Activations . | . . . . . Shielding Activations . | . . . . . Robots Disrupted . | . . . . . Combat Hostiles . | . . . . . Robots Corrupted . | . . . . . Combat Hostiles . | . . . . . Parts Fried 2 | . . 2 . . Impact Corruptions . | . . . . . Robots Melted 1 | . . 1 . . Combat Hostiles 1 | . . 1 . . Parts Melted 7 | . . 7 . . Heat Transferred 1619 | . 37 1360 222 . Parts Sabotaged . | . . . . . Parts Stolen . | . . . . . Parts Stripped . | . . . . . Power Chain Reactions 1 | . . 1 . . Alert | -11 -10 -9 -8 -8 ------- Run | Yrd Mat Mat Mat Gar Maximum Alert Level 2 | . . 2 1 . Low Security (%) 54 | 100 100 47 . 100 Level 1 32 | . . 28 100 . Level 2 12 | . . 23 . . Level 3 . | . . . . . Level 4 . | . . . . . Level 5 . | . . . . . High Security . | . . . . . Max Security . | . . . . . Peak Influence 592 | . . 592 284 155 Initial 249 | . . . 249 155 Average 183 | . . 248 244 155 Influence Increases 974 | . . 864 110 . Destroy 0b10 Robot/C 380 | . . 360 20 . Destroy 0b10 Robot/NC 85 | . . 80 5 . Destroy Leader 70 | . . 70 . . Disable Machine 135 | . . 135 . . Destroy Structure 199 | . . 174 25 . Partial Spotted 15 | . . 15 . . Lose Combat Pursuer 90 | . . 30 60 . Influence Decreases 819 | . . 272 463 84 Entered New Map 427 | . . . 343 84 Time Decay 302 | . . 222 80 . Lost Part 90 | . . 50 40 . Squads Dispatched 1 | . . 1 . . Investigation . | . . . . . Extermination . | . . . . . Reinforcement 1 | . . 1 . . Assault . | . . . . . Garrison . | . . . . . Intercept . | . . . . . Searches Triggered . | . . . . . Construction Impeded . | . . . . . Haulers Reinforced . | . . . . . Active Scanning Responses . | . . . . . Cargo Convoy Interrupts . | . . . . . Stealth | -11 -10 -9 -8 -8 --------- Run | Yrd Mat Mat Mat Gar Distress Signals . | . . . . . Communications Jammed . | . . . . . Distress Signals . | . . . . . Times Spotted 53 | . 3 26 19 5 Peak Tracking Total 15 | . 3 4 15 5 Tactical Retreats 3 | . . 2 1 . Traps | -11 -10 -9 -8 -8 ------- Run | Yrd Mat Mat Mat Gar Traps Triggered 3 | . . . . 3 Indirectly . | . . . . . Trap Hack Attempts . | . . . . . Triggered . | . . . . . Disarmed . | . . . . . Reprogrammed . | . . . . . Reused . | . . . . . Traps Extracted . | . . . . . Installed . | . . . . . Triggered . | . . . . . Machines | -11 -10 -9 -8 -8 ---------- Run | Yrd Mat Mat Mat Gar Machines Disabled 9 | . . 9 . . Max in Single Turn 2 | . . 2 . . Machines Repaired . | . . . . . Machines Dismantled . | . . . . . Machines Sabotaged . | . . . . . Overloaded Fab Kills . | . . . . . Hacking | -11 -10 -9 -8 -8 --------- Run | Yrd Mat Mat Mat Gar Machines Accessed 2 | . . 1 1 . Terminals . | . . . . . Fabricators . | . . . . . Repair Stations . | . . . . . Recycling Units . | . . . . . Scanalyzers 1 | . . 1 . . Garrison Access 1 | . . . 1 . Total Hacks 5 | . . 3 2 . Successful 3 | . . 2 1 . Failed 2 | . . 1 1 . Catastrophic . | . . . . . Database Lockouts . | . . . . . Manual . | . . . . . Terminals . | . . . . . Fabricators . | . . . . . Repair Stations . | . . . . . Recycling Units . | . . . . . Scanalyzers 3 | . . 3 . . Garrison Access 2 | . . . 2 . Terminal Hacks . | . . . . . Fabricator Hacks . | . . . . . Repair Station Hacks . | . . . . . Recycling Unit Hacks . | . . . . . Scanalyzer 2 | . . 2 . . Insert Component 1 | . . 1 . . Analyze 1 | . . 1 . . Garrison Access Hacks 1 | . . . 1 . Unlock Access 1 | . . . 1 . Unauthorized Hacks . | . . . . . Terminals . | . . . . . Fabricators . | . . . . . Repair Stations . | . . . . . Recycling Units . | . . . . . Scanalyzers . | . . . . . Garrison Access . | . . . . . Data Cores Recovered . | . . . . . Used . | . . . . . Hacking Detections 1 | . . 1 . . Full Trace Events . | . . . . . Feedback Events . | . . . . . Feedback Blocked . | . . . . . Robot Schematics Acquired . | . . . . . Robots Built . | . . . . . Authchips . | . . . . . Time . | . . . . . Total Robot Build Rating . | . . . . . Part Schematics Acquired 1 | . . 1 . . Parts Built . | . . . . . Authchips . | . . . . . Time . | . . . . . Total Part Build Rating . | . . . . . Parts Repaired . | . . . . . Time . | . . . . . Parts Recycled . | . . . . . Recycled Matter . | . . . . . Retrieved Matter . | . . . . . Retrieved Components . | . . . . . Parts Scanalyzed 1 | . . 1 . . Part Schematics Acquired 1 | . . 1 . . Parts Damaged . | . . . . . Bothacking | -11 -10 -9 -8 -8 ------------ Run | Yrd Mat Mat Mat Gar Used RIF Installer . | . . . . . Robots Hacked . | . . . . . Non-combat . | . . . . . Combat . | . . . . . Robot Hacks Applied . | . . . . . Relay Couplers Released . | . . . . . Fabnet Peak Effective % . | . . . . . Robots Rewired . | . . . . . Allies Hacked . | . . . . . Hacks Repelled . | . . . . . Allies | -11 -10 -9 -8 -8 -------- Run | Yrd Mat Mat Mat Gar Total Allies . | . . . . . Largest Group . | . . . . . Highest-Rated Group . | . . . . . Highest-Rated Ally . | . . . . . Total Orders . | . . . . . Ally Attacks . | . . . . . Total Damage . | . . . . . Kills . | . . . . . Allies Corrupted . | . . . . . Allies Melted . | . . . . . Intel | -11 -10 -9 -8 -8 ------- Run | Yrd Mat Mat Mat Gar Active Infowar (turns) . | . . . . . Robot Analysis Total . | . . . . . Derelict Logs Recovered . | . . . . . Drone Launches . | . . . . . Drone Recoveries . | . . . . . Exploration | -11 -10 -9 -8 -8 ------------- Run | Yrd Mat Mat Mat Gar Turns Passed 1044 | 56 190 563 178 57 Spaces Moved 689 | 38 108 336 151 56 Core 425 | 12 . 206 151 56 Treads 264 | 26 108 130 . . Legs . | . . . . . Wheels . | . . . . . Hover . | . . . . . Flight . | . . . . . Fastest Speed 50 | 50 160 50 50 50 Average Speed 113 | 125 160 115 95 50 Slowest Speed 200 | 160 160 160 200 50 Overloaded Moves . | . . . . . Propulsion Burnouts . | . . . . . Robots Hopped . | . . . . . Potential Cave-ins 3 | . . 3 . . Cave-ins Triggered . | . . . . . Exploration Rate (%) 22 | 4 21 54 22 12 Regions Visited 4 Branch Regions . Pre-discovered Areas . | . . . . . Known Exits Taken 1 | . . . 1 . Unknown Exits Taken 3 | 1 1 1 . . Scrap Searched . | . . . . . Spaces Dug 70 | . . 70 . . Terrain Destroyed 248 | . . 222 26 . Melee . | . . . . . Projectile . | . . . . . AOE 248 | . . 222 26 . Terrain Rammed . | . . . . . Walls Destroyed . | . . . . . Machines Disabled . | . . . . . Actions | -11 -10 -9 -8 -8 --------- Run | Yrd Mat Mat Mat Gar Total 847 | 47 117 425 173 85 Wait 12 | . . 9 3 . Move 686 | 37 107 335 151 56 Hop . | . . . . . Pick Up 14 | 5 4 2 3 . Fast Attach 1 | . . 1 . . Attach 13 | 5 . 3 5 . Detach 4 | . . 2 2 . Swap 3 | . 2 1 . . Drop 3 | . . 3 . . Fire 82 | . 4 69 9 . Melee . | . . . . . Ram . | . . . . . Kick . | . . . . . Crush . | . . . . . Escape Stasis 29 | . . . . 29 Rewire . | . . . . . Trap . | . . . . . Miscellaneous . | . . . . . Route ------- -11/Scrapyard -10/Materials -9/Materials (discovered 3 exits: *Mat x2 / [*Min]) -8/Materials -8/Garrison History --------- Turn | Location | Event 5 | -11/Scrapyard | Discovered new exit (range 15) 57 | -11/Scrapyard | Entered Materials 242 | -10/Materials | Discovered new exit (range 3) 247 | -10/Materials | Entered another Materials area 247 | -9/Materials | Evolved 2 slots: Utility x2 306 | -9/Materials | Build established: Mutant 591 | -9/Materials | Discovered new exit (range 8) 693 | -9/Materials | Discovered new exit (range 12) 708 | -9/Materials | Lost 3 parts (1p1n1w) 751 | -9/Materials | Core integrity fell below 50% 777 | -9/Materials | Core integrity fell below 20% 802 | -9/Materials | Discovered new exit (range 16) 810 | -9/Materials | Entered another Materials area 810 | -8/Materials | Evolved 2 slots: Utility x2 891 | -8/Materials | Core integrity fell below 50% 986 | -8/Materials | Core integrity fell below 20% 988 | -8/Materials | Identified exit to Garrison 988 | -8/Materials | Entered Garrison 1045 | -8/Garrison | Destroyed by S-10 Pest with Light Assault Rifle Last Messages --------------- A bubble of rippling energy engulfs the area. Field strength at 94. Field strength at 88. Field strength at 82. Field strength at 74. Field strength at 66. Field strength at 60. Field strength at 51. Field strength at 43. Field strength at 33. Field strength at 25. Field strength at 16. Field strength at 8. Stasis field depleted. Triggered Stasis Trap. A bubble of rippling energy engulfs the area. Field strength at 94. Field strength at 86. Field strength at 77. Field strength at 66. Map ----- +----------------------------------------------------+ | ?????????????????????????????????????????????????? | | ?????????????????????????????????????????????????? | | ?????????????????????????????????????????????????? | | ?????????????????????????????????????????????????? | | ?????????????????????????????????????????????????? | | ?????????????????????????????????????????????????? | | ?????????????????????????????????????????????????? | | ?????????????????????????????????????????????????? | | ?????????????????????????????????????????????????? | | ?????????????????????????????????????????????????? | | ?????????????????????????????????????????????????? | | ?????????????????????????????????????????????????? | | ?????????????????????????????????????????????????? | | ?????????????????????????????????????????????????? | | ?????????????????????????????????????????????????? | | ?????????????????#???????????????????????????????? | | ?????????????????? ??????????????????????????????? | | ???????????# ?????# ?????????????????????????????? | | ????????? ## ####+#######??????????????????????? | | ???????? #??????????????????????? | | ???????? s #??????????????????????? | | ???????? s #??????????????????????? | | ???????????????######## s #??????????????????????? | | ??????????????????????# #??????????????????????? | | ??????????????????????#^^ #??????????????????????? | | ??????????????????????# ^@#??????????????????????? | | ??????????????????????# #??????????????????????? | | ??????????????????????# #??????????????????????? | | ??????????????????????#s #??????????????????????? | | ??????????????????????+ #??????????????????????? | | ????????????????????? + #??????????????????????? | | ?????????????????????## #??????????????????????? | | ??????????????????????# #??????????????????????? | | ??????????????????????# #??????????????????????? | | ??????????????????????# #??????????????????????? | | ??????????????????????# #??????????????????????? | | ??????????????????????# #??????????????????????? | | ??????????????????????# #??????????????????????? | | ??????????????????????# #??????????????????????? | | ??????????????????????# #######################? | | ??????????????????????# #? | | ??????????????????????# #? | | ??????????????????????# #? | | ??????????????????????################# #### #? | | ??????????????????????????????????????# #??# #? | | ??????????????????????????????????????# #??# #? | | ?????????????????????????????????????? #??# #? | | ????????????????????????????????????? #??# #? | | ????????????????????????????????????######??# #? | | ????????????????????????????????????????????# #? | +----------------------------------------------------+ Best States ------------- Heat Dissipation 31 Energy Generation 10 Energy Capacity 250 Matter Stores 300 Matter Capacity 500 Sight Range 16 Terrain Scan Density 10 Evasion (%) 50 Recoil Reduction 2 Item Schematics ----------------- Hcp. Matter Pod | -9/Materials | Scanalyzed Robot Schematics ------------------ None Fabricated ------------ Nothing Repaired ---------- Nothing Alien Tech Used ----------------- None Achievements -------------- None Challenges ------------ None Game ------ Seed MassStorageCharge Manual? 0 Play Time 00:08:11 Cumulative 110.7 hours Start 2025.08.29 @ 11:38:36 End 2025.08.29 @ 11:46:22 Sessions 1 Manual Loads 0 Difficulty Rogue Special Mode None Game No. 410 Rogue 410 Adventurer 0 Explorer 0 Win Type - Total 0 Types 0/0/0/0/0/0/0/0/0/0 Lore% 44 Gallery% 43 Achievement% 31 Wizard Run 0 Options --------- Layout 2 ASCII 0 Keyboard 0 Movement Mouse Keybinds 0 Fullscreen 2 Font 24/Smallcaps Map View 50x44 Zoom Use 0% Tactical HUD 0 Map Filters NONE Filters NONE Steam 1 RUN: 1f79bffc-391c-4020-bbf0-70ec270e99ba